[Event "Gibraltar Challengers B 2020"]
[Site "Caleta"]
[Date "2020.01.29"]
[Round "5.25"]
[White "Garcia Rodriguez, Inaki"]
[Black "Raghav, Srivathsav V"]
[Result "0-1"]
[ECO "B07"]
[WhiteElo "1944"]
[BlackElo "2023"]
[Annotator "NA RC"]
[PlyCount "154"]
[EventDate "2020.01.20"]
[EventType "swiss"]
[EventCountry "GGB"]
[SourceTitle "playchess.com"]
[Source "ChessBase"]
[SourceQuality "1"]
[TimeControl "6600+10"]

1. d4 {[%emt 0:00:00]} g6 {[%emt 0:09:29]} 2. e4 {[%emt 0:00:36]} Bg7 {[%emt 0:00:11]} 3. Be3 {[%emt 0:01:11]} d6 {[%emt 0:00:06]} 4. f3 {[%emt 0:00:37]} Nf6 {[%emt 0:00:08]} 5. Nc3 {[%emt 0:00:18]} c6 {[%emt 0:00:06]} 6. Qd2 {[%emt 0:00:20]} b5 {[%emt 0:00:07]} 7. a3 {[%emt 0:05:58]} Nbd7 {[%emt 0:00:28]} 8. Nge2 {[%emt 0:00:54] B07: Pirc Defence: Miscellaneous Systems} (8. Bd3 a6 9. Nce2 e5 10. c3 d5 11. Ng3 O-O 12. N1e2 Qc7 13. O-O c5 14. Bh6 Bxh6 15. Qxh6 Bb7 {½-½ (43) Hertneck,G (2492)-Vogel,R (2462) Germany 2019}) 8... Bb7 {[%emt 0:00:16]} 9. g4 {[%emt 0:00:39]} h5 {[%emt 0:03:23]} 10. g5 {[%emt 0:03:38]} Nh7 {[%emt 0:00:23]} 11. h4 {[%emt 0:00:30]} a5 $146 {[%emt 0:00:11]} ({Predecessor:} 11... Nb6 12. Ng3 Nf8 13. f4 Nfd7 14. f5 Qc7 15. Bd3 O-O-O {1-0 (53) Aakanksha,H (2308)-Frayna,J (2305) Ashkhabad 2017}) 12. Bg2 {[%emt 0:06:05]} b4 {[%emt 0:01:08]} 13. axb4 {[%emt 0:00:08]} axb4 {[%emt 0:00:05]} 14. Rxa8 {[%emt 0:00:10]} Qxa8 {[%emt 0:00:04]} 15. Nd1 {[%emt 0:00:10]} c5 {[%emt 0:00:40]} 16. O-O {[%emt 0:02:44]} Qa5 {[%emt 0:04:23]} 17. f4 {[%emt 0:06:17]} Ba6 {[%emt 0:02:30]} 18. Rf2 {[%emt 0:12:27]} (18. dxc5 $16 dxc5 19. Rf2) 18... cxd4 {[%emt 0:00:47]} (18... O-O $11 {remains equal.}) 19. Nxd4 {[%emt 0:01:12]} Bb7 {[%emt 0:05:49]} 20. f5 {[%emt 0:12:09]} O-O {[%emt 0:02:46]} 21. fxg6 {[%emt 0:04:18]} fxg6 {[%emt 0:00:15]} 22. Ne6 {[%emt 0:04:32]} Rxf2 {[%emt 0:00:29]} 23. Qxf2 {[%emt 0:05:31]} Qa1 {[%emt 0:06:30]} 24. Qf1 {[%emt 0:01:57]} Ba6 {[%emt 0:00:13]} 25. Qe1 {[%emt 0:00:28]} Bxb2 {[%emt 0:01:22]} 26. Bd2 {[%emt 0:03:41]} Be5 {[%emt 0:00:53]} 27. Ne3 {[%emt 0:01:37]} Qxe1+ {[%emt 0:02:18]} 28. Bxe1 {[%emt 0:00:08]} Nc5 {[%emt 0:00:39]} 29. Nc7 {[%emt 0:01:17]} Bb7 {[%emt 0:00:06]} 30. Ncd5 {[%emt 0:01:20]} e6 {[%emt 0:03:27]} 31. Nxb4 {[%emt 0:00:01]} Bxe4 {[%emt 0:00:59]} 32. Bxe4 {[%emt 0:00:28]} Nxe4 {[%emt 0:00:02]} 33. Kg2 {[%emt 0:01:47]} (33. Nc4 $11 {keeps the balance.}) 33... d5 {[%emt 0:00:51]} (33... Bc3 $17 34. Bxc3 Nxc3) 34. Nc6 {[%emt 0:02:32]} Bd6 {[%emt 0:01:32]} 35. Kf3 {[%emt 0:01:14]} Nc5 {[%emt 0:01:51]} 36. Bb4 {[%emt 0:03:52]} Nb7 {[%emt 0:00:23]} 37. Bxd6 {[%emt 0:00:11]} Nxd6 {[%emt 0:00:01]} 38. Kf4 {[%emt 0:00:19]} Nf8 {[%emt 0:01:46]} 39. Ke5 {[%emt 0:00:22]} Ne8 {[%emt 0:04:24]} 40. Nd8 $1 {[%emt 0:07:46]} Nc7 $2 {[%emt 0:02:13]} (40... Ng7 $11 {and Black has nothing to worry.}) 41. Kf6 {[%emt 0:02:27]} d4 {[%emt 0:00:18]} 42. Ng2 {[%emt 0:00:50]} Nd5+ {[%emt 0:01:23]} 43. Ke5 {[%emt 0:00:30]} Ne3 {[%emt 0:02:13]} 44. Nf4 {[%emt 0:00:45]} Nxc2 {[%emt 0:01:36]} 45. Nc6 {[%emt 0:02:07]} Kf7 {[%emt 0:08:03]} 46. Nxd4 $2 {[%emt 0:02:06]} (46. Kd6 $11 {and White is okay.}) 46... Nd7+ {[%emt 0:00:16]} 47. Kd6 {[%emt 0:01:04]} Nxd4 {[%emt 0:00:09]} 48. Kxd7 {[%emt 0:00:04]} e5 {[%emt 0:00:14]} 49. Ng2 {[%emt 0:00:20]} Nf5 {[%emt 0:00:34]} 50. Kc6 {[%emt 0:00:10]} e4 {[%emt 0:00:08]} 51. Kd5 {[%emt 0:00:01]} e3 {[%emt 0:00:25]} 52. Ke4 {[%emt 0:01:55]} e2 {[%emt 0:00:05]} 53. Kd3 {[%emt 0:00:22]} Nxh4 {[%emt 0:00:10]} 54. Ne1 {[%emt 0:00:02]} Ke6 {[%emt 0:00:21]} 55. Kxe2 {[%emt 0:01:33]} Kf5 {[%emt 0:00:06]} 56. Kf2 {[%emt 0:00:02]} Kxg5 {[%emt 0:00:48]} 57. Kg3 {[%emt 0:00:01]} Nf5+ {[%emt 0:00:46]} 58. Kh3 {[%emt 0:00:00]} Nd4 {[%emt 0:01:30]} 59. Ng2 {[%emt 0:00:02]} Ne2 {[%emt 0:01:07]} 60. Ne3 {[%emt 0:00:02]} Kf4 {[%emt 0:01:50]} 61. Ng2+ {[%emt 0:00:01]} Ke4 {[%emt 0:00:53]} 62. Kh4 {[%emt 0:01:11]} Nf4 {[%emt 0:00:41]} 63. Ne1 {[%emt 0:00:01]} Kf5 {[%emt 0:02:47]} 64. Nf3 {[%emt 0:00:30]} Ne6 {[%emt 0:00:27]} 65. Ng1 {[%emt 0:00:54]} Ng7 {[%emt 0:01:46]} 66. Nh3 {[%emt 0:00:16]} Kf6 {[%emt 0:00:22]} 67. Ng1 {[%emt 0:00:26]} g5+ {[%emt 0:00:19]} 68. Kg3 {[%emt 0:00:01]} Kf5 {[%emt 0:00:30]} 69. Ne2 {[%emt 0:00:11]} Ne6 {[%emt 0:00:00]} 70. Nc3 {[%emt 0:01:34]} h4+ {[%emt 0:00:00]} 71. Kh2 $19 {[%emt 0:00:02]} g4 {[%emt 0:00:00]} 72. Nd1 {[%emt 0:00:16]} Kf4 {[%emt 0:00:00]} 73. Nc3 {[%emt 0:00:03]} Kf3 {[%emt 0:00:00]} 74. Kh1 {[%emt 0:00:02]} g3 {[%emt 0:00:00]} 75. Nb1 {[%emt 0:00:13]} Kf2 {[%emt 0:00:21]} 76. Nd2 {[%emt 0:00:06]} g2+ {[%emt 0:00:06]} 77. Kh2 {[%emt 0:00:00]} g1=Q+ {[%emt 0:00:07]} 0-1

[Event "Gibraltar Challengers B 2020"]
[Site "Caleta"]
[Date "2020.01.29"]
[Round "5.26"]
[White "Fischer, Robert"]
[Black "Hladik, Lumir"]
[Result "1-0"]
[ECO "E65"]
[WhiteElo "1923"]
[BlackElo "2018"]
[Annotator "NA RC"]
[PlyCount "49"]
[EventDate "2020.01.20"]
[EventType "swiss"]
[EventCountry "GGB"]
[SourceTitle "playchess.com"]
[Source "ChessBase"]
[SourceQuality "1"]
[TimeControl "6600+10"]

1. c4 {[%emt 0:00:00]} Nf6 {[%emt 0:00:38]} 2. Nc3 {[%emt 0:00:10]} g6 {[%emt 0:02:20]} 3. g3 {[%emt 0:00:17]} Bg7 {[%emt 0:00:32]} 4. Bg2 {[%emt 0:00:07]} O-O {[%emt 0:00:14]} 5. Nf3 {[%emt 0:00:03]} d6 {[%emt 0:00:49]} 6. O-O {[%emt 0:00:07]} c5 {[%emt 0:01:16]} 7. d4 {[%emt 0:01:07]} cxd4 {[%emt 0:00:43]} 8. Nxd4 {[%emt 0:00:14]} a6 {[%emt 0:00:44]} 9. e3 {[%emt 0:03:35] E65: King's Indian: Fianchetto: 6...c5 7 0-0 without d5 by White} (9. b3 Qc7 10. Bg5 Nbd7 11. Rc1 h6 12. Be3 Ne5 13. h3 Bd7 14. f4 Nc6 15. Nd5 Qd8 16. Nxc6 Bxc6 17. Bb6 {1-0 (72) Khademalsharieh,S (2487)-Saduakassova,D (2505) Moscow 2019}) 9... Qc7 {[%emt 0:00:35]} 10. Nd5 $146 {[%emt 0:03:40]} ({Predecessor:} 10. b3 e5 11. Nde2 Nc6 12. Ba3 Rd8 13. Nd5 Nxd5 14. Bxd5 Ne7 15. Nc3 Rb8 16. Rc1 Bh3 {0-1 (44) Barros,G-Osorio,J (1930) Vitoria 2014}) 10... Nxd5 {[%emt 0:01:10]} 11. cxd5 {[%emt 0:00:20]} Nd7 {[%emt 0:05:24]} 12. Bd2 {[%emt 0:02:37]} Nf6 {[%emt 0:06:44]} 13. Rc1 {[%emt 0:07:37]} Qb8 {[%emt 0:01:03]} 14. Qb3 {[%emt 0:09:41]} Bd7 {[%emt 0:06:50]} 15. Qb6 {[%emt 0:02:24]} Ne8 {[%emt 0:01:52]} 16. Rc3 {[%emt 0:05:32]} Qa7 {[%emt 0:06:10]} 17. Rb3 {[%emt 0:02:33]} Qxb6 {[%emt 0:06:12]} 18. Rxb6 {[%emt 0:00:13]} Bc8 {[%emt 0:01:13]} 19. Rc1 {[%emt 0:00:49]} e5 {[%emt 0:01:21]} 20. dxe6 $1 {[%emt 0:03:29]} Bxd4 {[%emt 0:00:49]} 21. exf7+ {[%emt 0:02:27]} Rxf7 {[%emt 0:00:58]} 22. exd4 {[%emt 0:00:16]} Nc7 {[%emt 0:02:28]} 23. Rxd6 {[%emt 0:05:32]} Be6 {[%emt 0:01:10]} 24. Rxc7 {[%emt 0:01:28]} Rxc7 $18 {[%emt 0:00:36]} 25. Rxe6 {[%emt 0:00:14]} 1-0

[Event "Gibraltar Challengers B 2020"]
[Site "Caleta"]
[Date "2020.01.29"]
[Round "5.27"]
[White "Verhoef, Jaap"]
[Black "Hng, Mei-Xian Eunice"]
[Result "0-1"]
[ECO "B43"]
[WhiteElo "2015"]
[BlackElo "1661"]
[Annotator "NA RC"]
[PlyCount "63"]
[EventDate "2020.01.20"]
[EventType "swiss"]
[EventCountry "GGB"]
[SourceTitle "playchess.com"]
[Source "ChessBase"]
[SourceQuality "1"]
[TimeControl "6600+10"]

1. e4 {[%emt 0:00:00]} c5 {[%emt 0:00:00]} 2. Nf3 {[%emt 0:00:00]} e6 {[%emt 0:00:06]} 3. d4 {[%emt 0:00:00]} cxd4 {[%emt 0:00:07]} 4. Nxd4 {[%emt 0:00:01]} a6 {[%emt 0:00:05]} 5. Nc3 {[%emt 0:00:12]} Qc7 {[%emt 0:00:10]} 6. Bd3 {[%emt 0:01:24]} Nf6 {[%emt 0:00:24]} 7. O-O {[%emt 0:00:19]} Bd6 {[%emt 0:00:26]} 8. f4 {[%emt 0:01:08] B43: Sicilian: Kan Variation: 5 Nc3} Bc5 {[%emt 0:02:08]} 9. Be3 {[%emt 0:00:04]} (9. Nce2 d6 10. Kh1 e5 11. Nb3 Ba7 12. Qe1 Be6 13. Qg3 Nbd7 14. Bd2 h5 15. f5 Bxb3 16. axb3 {0-1 (68) Hector,J (2495)-Maiwald,J (2443) Germany 2019}) 9... Nc6 {[%emt 0:01:36]} 10. Nce2 {[%emt 0:00:39]} d6 $146 {[%emt 0:12:20]} ({Predecessor:} 10... Ng4 11. Qd2 Nxe3 12. Qxe3 Qb6 13. c3 Qxb2 14. Kh1 Qb6 15. Qg3 O-O 16. f5 f6 17. fxe6 dxe6 {0-1 (38) Sambolec,A (1851)-Misovic,S Busevec 2007}) 11. Kh1 {[%emt 0:00:34]} O-O {[%emt 0:08:00]} 12. e5 {[%emt 0:05:22]} dxe5 {[%emt 0:04:56]} 13. Nxe6 {[%emt 0:00:59]} Bxe6 {[%emt 0:00:08]} 14. Bxc5 {[%emt 0:00:05]} Rfd8 {[%emt 0:00:30]} 15. f5 {[%emt 0:01:38] [#]} Bd5 $2 {[%emt 0:02:48]} (15... Bc8 $1 $19 {is more deadly.} 16. Nc3 {[#]} e4 $1 {[%mdl 512]} 17. Nxe4 Nxe4 {[%mdl 64] Pin}) 16. Ng3 {[%emt 0:05:05] [#]} Bxg2+ $1 {[%emt 0:09:23]} 17. Kxg2 {[%emt 0:00:30]} e4 {[%emt 0:00:04]} 18. Nxe4 {[%emt 0:02:25]} Nxe4 {[%emt 0:00:18]} 19. f6 {[%emt 0:16:04]} Rxd3 {[%emt 0:23:07]} 20. cxd3 {[%emt 0:09:36]} Nxc5 {[%emt 0:00:06]} 21. Qg4 {[%emt 0:00:12]} Ne6 {[%emt 0:01:50]} 22. Rae1 {[%emt 0:09:02]} Ncd4 {[%emt 0:05:27]} 23. Re4 {[%emt 0:00:03]} g6 {[%emt 0:03:16]} (23... Qc6 $142 24. Kh1 g6) 24. Rxd4 {[%emt 0:09:16]} Nxd4 {[%emt 0:00:10]} 25. Qxd4 {[%emt 0:00:02]} Re8 {[%emt 0:01:30]} 26. Rf2 {[%emt 0:07:32]} Qc6+ {[%emt 0:02:41]} 27. Kg3 {[%emt 0:00:17]} Qc1 {[%emt 0:06:52]} 28. Qf4 {[%emt 0:04:59]} Qg1+ {[%emt 0:00:43]} 29. Kh3 {[%emt 0:00:11]} h5 {[%emt 0:03:16]} 30. Qg3 {[%emt 0:01:31]} Re3 {[%emt 0:03:21]} 31. Rf3 {[%emt 0:00:30] [#]} Rxf3 $1 {[%emt 0:00:32]} 32. Qxf3 $19 {[%emt 0:00:16]} 0-1

[Event "Gibraltar Challengers B 2020"]
[Site "Caleta"]
[Date "2020.01.29"]
[Round "5.28"]
[White "Kukic, Boris"]
[Black "Niharika Ch"]
[Result "0-1"]
[ECO "B22"]
[WhiteElo "2056"]
[BlackElo "1865"]
[Annotator "NA"]
[PlyCount "134"]
[EventDate "2020.01.20"]
[EventType "swiss"]
[EventCountry "GGB"]
[SourceTitle "playchess.com"]
[Source "ChessBase"]
[SourceQuality "1"]
[TimeControl "6600+10"]

1. e4 {[%emt 0:00:15]} c5 {[%emt 0:00:00]} 2. c3 {[%emt 0:00:48]} Nf6 {[%emt 0:00:35]} 3. e5 {[%emt 0:00:16]} Nd5 {[%emt 0:00:06]} 4. d4 {[%emt 0:00:04]} e6 {[%emt 0:00:18]} 5. Nf3 {[%emt 0:00:35]} Nc6 {[%emt 0:00:11]} 6. a3 {[%emt 0:00:14]} cxd4 {[%emt 0:00:11]} 7. cxd4 {[%emt 0:00:12]} d6 {[%emt 0:00:16]} 8. exd6 {[%emt 0:00:32]} Bxd6 {[%emt 0:00:12]} 9. Bd3 {[%emt 0:00:20] B22: Sicilian: 2 c3} (9. Be2 Nf4 10. Bxf4 Bxf4 11. Nc3 O-O 12. O-O Bh6 13. Bb5 g6 14. Qd3 Bg7 15. Rfd1 Ne7 16. Ne5 a6 {1-0 (48) Tropp,F (2115)-Gregor,E (2020) Slovakia 2017}) 9... Nf4 {[%emt 0:01:46]} 10. O-O {[%emt 0:00:17]} Nxd3 {[%emt 0:00:44]} 11. Qxd3 {[%emt 0:00:10]} Be7 $146 {[%emt 0:00:55]} ({Predecessor:} 11... O-O 12. Nbd2 b6 13. Ne4 Be7 14. Rd1 Bb7 15. Neg5 g6 16. Ne4 Qd5 {0-1 (34) De Miguel Fernandez,B-Altuna Pena,J San Miguel 1999}) 12. Nc3 {[%emt 0:00:14]} O-O {[%emt 0:00:37]} 13. Bf4 {[%emt 0:00:08]} a6 {[%emt 0:00:14]} 14. h3 {[%emt 0:00:17]} b5 {[%emt 0:01:33]} 15. Rad1 {[%emt 0:00:14]} b4 {[%emt 0:02:14]} 16. axb4 {[%emt 0:00:13]} Nxb4 {[%emt 0:00:15]} 17. Qb1 {[%emt 0:00:09]} Bb7 {[%emt 0:00:17]} 18. Ne4 {[%emt 0:04:02]} h6 {[%emt 0:01:39]} 19. Rfe1 {[%emt 0:00:10]} Nd5 {[%emt 0:01:11]} 20. Bc1 {[%emt 0:00:24]} Rc8 {[%emt 0:00:48]} 21. Ne5 {[%emt 0:00:39]} Nf6 {[%emt 0:02:19]} 22. f3 {[%emt 0:01:14]} Qb6 {[%emt 0:01:05]} ({Black should play} 22... Nxe4 $17 23. fxe4 Bh4) 23. Nxf6+ {[%emt 0:00:35]} Bxf6 {[%emt 0:00:09]} 24. Nd7 $1 {[%emt 0:00:18]} Bxd4+ {[%emt 0:02:07]} 25. Kh1 {[%emt 0:00:13]} Qb4 {[%emt 0:02:51]} 26. Nxf8 {[%emt 0:00:18]} Rxf8 {[%emt 0:00:16]} 27. Qd3 {[%emt 0:00:35]} Bf6 {[%emt 0:02:51]} 28. Bd2 {[%emt 0:01:00]} Qh4 {[%emt 0:04:56]} 29. Bc3 {[%emt 0:00:16]} Rd8 {[%emt 0:02:18]} 30. Bxf6 {[%emt 0:00:52]} Qxe1+ {[%emt 0:00:22]} 31. Rxe1 {[%emt 0:00:14]} Rxd3 {[%emt 0:00:05]} 32. Bc3 {[%emt 0:00:04]} g5 {[%emt 0:01:36]} 33. Kg1 {[%emt 0:00:43]} Kh7 {[%emt 0:00:11]} 34. Kf2 {[%emt 0:00:06]} Bc6 {[%emt 0:00:20]} 35. Re5 {[%emt 0:00:47]} Kg6 {[%emt 0:00:21]} 36. Rc5 {[%emt 0:00:09]} Bb5 {[%emt 0:01:35]} 37. Rc8 {[%emt 0:00:10]} h5 {[%emt 0:03:01]} 38. Rg8+ {[%emt 0:02:33]} Kf5 {[%emt 0:00:14]} 39. Rf8 {[%emt 0:00:06]} Rd7 {[%emt 0:00:27]} 40. g3 {[%emt 0:02:38]} g4 {[%emt 0:00:22]} 41. fxg4+ {[%emt 0:00:32]} hxg4 {[%emt 0:00:13]} 42. h4 {[%emt 0:00:02]} e5 {[%emt 0:00:29]} 43. Rg8 {[%emt 0:00:12]} f6 {[%emt 0:00:13]} 44. Rf8 {[%emt 0:00:23]} Rd3 {[%emt 0:01:30]} 45. Rg8 {[%emt 0:00:16]} Rf3+ {[%emt 0:00:17]} 46. Kg2 {[%emt 0:00:17]} Bc6 {[%emt 0:00:20]} 47. Be1 {[%emt 0:01:15]} Rb3+ {[%emt 0:02:03]} 48. Kg1 {[%emt 0:00:10]} Rxb2 {[%emt 0:00:10]} 49. Rd8 {[%emt 0:01:26]} Re2 {[%emt 0:00:59]} 50. Bf2 {[%emt 0:00:30]} Ra2 {[%emt 0:00:46]} 51. Be1 {[%emt 0:00:13]} a5 {[%emt 0:00:09]} 52. Bd2 {[%emt 0:01:11]} a4 {[%emt 0:00:15]} 53. h5 {[%emt 0:00:05]} Ra1+ {[%emt 0:00:28]} 54. Kf2 {[%emt 0:00:08]} Rh1 {[%emt 0:00:06]} 55. h6 {[%emt 0:00:07]} (55. Bb4 $142) 55... Be4 {[%emt 0:01:39]} (55... a3 $142 56. Bc3 a2) 56. Rd7 {[%emt 0:00:14]} Ke6 {[%emt 0:02:20]} 57. Ra7 {[%emt 0:00:17]} Bc2 {[%emt 0:01:02]} 58. Kg2 {[%emt 0:00:06]} Rd1 {[%emt 0:00:38]} 59. Be3 {[%emt 0:01:12]} Rd7 {[%emt 0:00:21]} 60. Ra6+ {[%emt 0:00:18]} Kf5 {[%emt 0:00:09]} 61. Bc5 {[%emt 0:00:27]} Rf7 {[%emt 0:01:15]} 62. Be3 {[%emt 0:00:23]} Ke4 {[%emt 0:01:06]} 63. Kf2 {[%emt 0:00:07]} f5 {[%emt 0:00:22]} 64. Bg5 $2 {[%emt 0:00:15]} (64. Ra7 $15 Rf8 65. Bc1) 64... f4 {[%emt 0:00:39]} 65. Bf6 {[%emt 0:00:12]} Rd7 {[%emt 0:06:00]} 66. Ra5 {[%emt 0:00:37]} Rd2+ $19 {[%emt 0:02:33]} 67. Ke1 {[%emt 0:01:29]} Rd3 {[%emt 0:03:32]} 0-1

[Event "Gibraltar Challengers B 2020"]
[Site "Caleta"]
[Date "2020.01.29"]
[Round "5.29"]
[White "Boardman, Jeffrey"]
[Black "Lung, Liviu-Catalin"]
[Result "1/2-1/2"]
[ECO "B32"]
[WhiteElo "1972"]
[BlackElo "2041"]
[Annotator "NA RC"]
[PlyCount "104"]
[EventDate "2020.01.20"]
[EventType "swiss"]
[EventCountry "GGB"]
[SourceTitle "playchess.com"]
[Source "ChessBase"]
[SourceQuality "1"]
[TimeControl "6600+10"]

1. e4 {[%emt 0:00:00]} c5 {[%emt 0:12:07]} 2. Nf3 {[%emt 0:00:34]} Nc6 {[%emt 0:00:23]} 3. d4 {[%emt 0:00:10]} cxd4 {[%emt 0:00:04]} 4. Nxd4 {[%emt 0:00:06]} e5 {[%emt 0:00:05]} 5. Nb5 {[%emt 0:00:09]} a6 {[%emt 0:00:10]} 6. Nd6+ {[%emt 0:00:12]} Bxd6 {[%emt 0:00:10]} 7. Qxd6 {[%emt 0:00:06]} Qf6 {[%emt 0:00:03]} 8. Qd2 {[%emt 0:02:39]} Qg6 {[%emt 0:00:06]} 9. Nc3 {[%emt 0:02:44]} Nf6 {[%emt 0:00:04]} 10. Qd6 {[%emt 0:03:49]} b5 {[%emt 0:01:13] B32: Sicilian: Löwenthal and Kalashnikov Variations} (10... Ng4 11. Qxg6 hxg6 12. Nd5 Rb8 13. Bg5 f6 14. Bd2 Nxh2 15. O-O-O d6 16. f3 f5 17. Be3 Rh4 18. Bd3 {1-0 (43) Everett,E (2187)-Mouroutis,K (2181) Berlin 2019}) 11. a3 {[%emt 0:08:57]} Ng8 {[%emt 0:01:35]} 12. Qxg6 {[%emt 0:13:14]} hxg6 {[%emt 0:00:07]} 13. Nd5 {[%emt 0:00:06]} Rb8 $146 {[%emt 0:00:09]} ({Predecessor:} 13... Kd8 14. Be3 Nd4 15. Bxd4 exd4 16. O-O-O Ne7 17. Nxe7 Kxe7 18. Rxd4 {1-0 (46) Vlasov,E (15)-Inyakina,A (1741) Rybinsk 2006}) 14. Be3 {[%emt 0:06:55]} d6 {[%emt 0:04:13]} 15. O-O-O {[%emt 0:02:21]} Be6 {[%emt 0:00:05]} 16. Nc7+ {[%emt 0:01:16]} Ke7 {[%emt 0:00:32]} 17. Nxa6 {[%emt 0:01:52]} Rb7 {[%emt 0:00:06]} 18. Bd3 {[%emt 0:14:21]} f5 {[%emt 0:03:02]} 19. f4 {[%emt 0:03:49]} Nf6 {[%emt 0:02:04]} 20. fxe5 {[%emt 0:00:49]} Nxe5 {[%emt 0:00:49]} 21. exf5 {[%emt 0:02:27]} gxf5 {[%emt 0:01:52]} 22. Nb4 {[%emt 0:03:36]} Nfg4 {[%emt 0:01:53]} 23. Bg1 {[%emt 0:02:03]} g5 {[%emt 0:05:51]} 24. h3 {[%emt 0:00:31]} f4 {[%emt 0:00:45]} 25. Bd4 {[%emt 0:03:17]} Nxd3+ {[%emt 0:03:07]} 26. Rxd3 {[%emt 0:01:56]} Ne5 {[%emt 0:00:24]} 27. Bxe5 {[%emt 0:01:44]} dxe5 {[%emt 0:00:01]} 28. Nc6+ {[%emt 0:00:24]} Kf6 {[%emt 0:02:05]} 29. Re1 {[%emt 0:00:14]} Re8 {[%emt 0:02:30]} 30. Nxe5 {[%emt 0:03:00]} ({Don't take} 30. Rxe5 $6 Rc7 $16) 30... Bc4 {[%emt 0:01:23]} 31. Ng4+ {[%emt 0:04:10] Discovered Attack} Kf7 {[%emt 0:00:23]} 32. Nh6+ {[%emt 0:01:32]} Kf8 {[%emt 0:00:51]} 33. Rxe8+ {[%emt 0:00:28]} Kxe8 {[%emt 0:00:02]} 34. Rd1 {[%emt 0:00:33]} Rd7 {[%emt 0:01:29]} 35. Re1+ {[%emt 0:01:51]} Re7 {[%emt 0:00:39]} 36. Rxe7+ {[%emt 0:00:38]} (36. Kd2 $18 {has better winning chances.}) 36... Kxe7 {[%emt 0:00:02]} 37. Nf5+ {[%emt 0:01:00]} Kf6 {[%emt 0:00:36]} 38. Nd4 {[%emt 0:00:07]} Bf1 {[%emt 0:00:19]} 39. Kd2 {[%emt 0:04:03]} Bxg2 {[%emt 0:00:19]} 40. Nxb5 {[%emt 0:00:05]} Bxh3 {[%emt 0:00:14]} 41. Ke2 {[%emt 0:00:24]} Ke5 {[%emt 0:00:45]} 42. Nc3 {[%emt 0:00:29] [#]} g4 $1 {[%emt 0:07:35]} 43. Kf2 {[%emt 0:00:08] [#]} (43. a4 $142 g3 44. a5 (44. Kf3 Bd7 $19)) 43... g3+ $1 {[%emt 0:00:27]} 44. Kf3 {[%emt 0:02:55]} Kf5 $2 {[%emt 0:01:59]} (44... Bc8 $19 45. Kg2 Bb7+ 46. Kf1 f3) 45. Nd5 {[%emt 0:01:00]} Bg4+ {[%emt 0:02:02]} 46. Kg2 {[%emt 0:00:13]} Ke5 {[%emt 0:00:15]} 47. Nc3 {[%emt 0:03:53]} Kd4 {[%emt 0:00:22]} 48. a4 {[%emt 0:00:19] [#]} Bf5 $2 {[%emt 0:02:32]} ({Better is} 48... Ke5 $1 $19 49. a5 Bc8) 49. Ne2+ {[%emt 0:04:42]} Ke3 {[%emt 0:00:33]} 50. Nxg3 $11 {[%emt 0:00:07]} fxg3 {[%emt 0:00:17]} 51. Kxg3 {[%emt 0:00:05]} Bxc2 {[%emt 0:00:11]} 52. a5 {[%emt 0:00:03]} Bd3 {[%emt 0:00:06]} 1/2-1/2

[Event "Gibraltar Challengers B 2020"]
[Site "Caleta"]
[Date "2020.01.29"]
[Round "5.30"]
[White "Ashwani Kumar Grover"]
[Black "Skutta, Bernd"]
[Result "0-1"]
[ECO "B06"]
[WhiteElo "1731"]
[BlackElo "1998"]
[Annotator "NA"]
[PlyCount "52"]
[EventDate "2020.01.20"]
[EventType "swiss"]
[EventCountry "GGB"]
[SourceTitle "playchess.com"]
[Source "ChessBase"]
[SourceQuality "1"]
[TimeControl "6600+10"]

1. e4 {[%emt 0:10:14]} g6 {[%emt 0:00:00]} 2. Nc3 {[%emt 0:00:06]} Bg7 {[%emt 0:00:13]} 3. f4 {[%emt 0:00:21]} c6 {[%emt 0:00:58]} 4. Nf3 {[%emt 0:00:09]} d5 {[%emt 0:00:09]} 5. Bd3 {[%emt 0:00:59]} (5. Qe2 Bg4 6. exd5 Nf6 7. dxc6 Nxc6 8. Qf2 O-O 9. d3 Bxf3 10. Qxf3 Nd4 11. Qd1 Rc8 12. Be2 {0-1 (27) Dvalishvili,P (2433)-Bologan,V (2615) Moscow 2017}) 5... dxe4 {[%emt 0:04:41]} 6. Nxe4 {[%emt 0:00:13] B06: Modern Defence} Nd7 {[%emt 0:00:44]} 7. Qe2 $146 {[%emt 0:02:27]} ({Predecessor:} 7. Bc4 Ngf6 8. Neg5 Nd5 9. d4 N7b6 10. Bd3 Qc7 11. Qd2 h6 12. Ne4 {1-0 (29) Mosconi,A (2126)-Villalba Izquierdo,P Valencia 2001}) 7... Ndf6 {[%emt 0:00:52]} 8. Nf2 {[%emt 0:01:07]} Nd5 {[%emt 0:01:10]} 9. g3 {[%emt 0:02:27]} Ngf6 {[%emt 0:00:11]} 10. c3 {[%emt 0:00:17]} O-O {[%emt 0:01:24]} 11. Bc2 {[%emt 0:00:13]} Ng4 {[%emt 0:07:03]} 12. Nxg4 {[%emt 0:00:34]} Bxg4 {[%emt 0:00:19]} 13. h3 {[%emt 0:00:03]} Bxf3 {[%emt 0:03:05]} 14. Qxf3 {[%emt 0:00:02]} e5 {[%emt 0:00:39]} 15. f5 {[%emt 0:02:53]} Qb6 {[%emt 0:03:39]} 16. d3 {[%emt 0:02:59]} gxf5 {[%emt 0:03:49]} 17. d4 {[%emt 0:07:51]} exd4 {[%emt 0:01:04]} 18. Qxf5 {[%emt 0:00:11]} Rfe8+ {[%emt 0:01:20]} 19. Kd1 {[%emt 0:07:48]} Ne3+ {[%emt 0:03:55]} 20. Bxe3 {[%emt 0:00:16]} dxe3 {[%emt 0:00:20]} 21. Qxh7+ {[%emt 0:03:38]} Kf8 {[%emt 0:00:08]} 22. Ke2 {[%emt 0:01:43]} Rad8 {[%emt 0:06:06]} 23. Rhf1 {[%emt 0:12:50]} Rd2+ $19 {[%emt 0:00:39]} 24. Ke1 {[%emt 0:00:05]} Rf2 {[%emt 0:03:05]} 25. Rxf2 {[%emt 0:01:52]} exf2+ {[%emt 0:00:10]} 26. Kf1 {[%emt 0:00:16]} Qe3 {[%emt 0:00:20]} 0-1